Cogmind - Beta 13 @@@ ROGUE MODE // 2024.04.27 @ 06:58:10 Player: FResh Result: Destroyed by D-53 Grenadier with Mini Grenade Launcher Performance ------------- Evolutions (0) 0 Regions Visited (2) 400 Robots Destroyed (17) 85 Value Destroyed (360) 360 Prototype IDs (0) 0 Alien Tech Used (0) 0 Bonus (0) 0 TOTAL SCORE: 845 Bonus ------- None Cogmind --------- Core Integrity 0/250 Matter 260/300 Energy 74/100 System Corruption 0% Temperature Cool (0) Movement Core (450) Ox8 Location -10/Mines Parts ------- > --- POWER (1) -------- (None) > --- PROPULSION (2) --- (None) > --- UTILITY (2) ------ Large Storage Unit Terrain Scanner > --- WEAPON (2) ------- Grenade Launcher Grenade Launcher > --- INVENTORY (15) --- Ion Engine Light Treads Light Treads Light Treads Light Treads Compact Wheel Improved Heat Sink Medium Matter Pod (32) Tractor Beam Spread Laser Assault Rifle Light Assault Rifle Light Cannon Hammer Peak State ------------ > --- POWER ------------ Ion Engine > --- PROPULSION ------- Light Treads Wheel > --- UTILITY ---------- Large Storage Unit Terrain Scanner > --- WEAPON ----------- Assault Rifle Light Cannon > --- INVENTORY -------- Light Ion Engine Light Treads Light Treads Light Treads Compact Wheel Medium Matter Pod Transport Network Coupler Shield Generator Spread Laser Spread Laser Spread Laser Spread Laser Light Assault Rifle Grenade Launcher Grenade Launcher [Rating: 9] Favorites ----------- Power Ion Engine Engine Ion Engine Propulsion Wheel Treads Light Treads Leg Aluminum Leg Wheel Wheel Utility Large Storage Unit Device Terrain Scanner Storage Large Storage Unit Weapon Light Cannon Energy Gun Medium Laser Ballistic Gun Assault Rifle Ballistic Cannon Light Cannon Launcher Grenade Launcher Impact Weapon Hammer Build | -11 -10 -10 ------- Run | Yrd Mat Min Slots Evolved . | . . . Power . | . . . Propulsion . | . . . Utility . | . . . Weapon . | . . . Parts Attached 27 | 2 7 18 Power 2 | . 1 1 Engine 2 | . 1 1 Core . | . . . Reactor . | . . . Propulsion 10 | 2 1 7 Treads 3 | . 1 2 Leg . | . . . Wheel 7 | 2 . 5 Hover . | . . . Flight . | . . . Utility 2 | . 2 . Device 1 | . 1 . Storage 1 | . 1 . Processor . | . . . Hackware . | . . . Protection . | . . . Artifact . | . . . Weapon 13 | . 3 10 Energy Gun 1 | . 1 . Energy Cannon . | . . . Ballistic Gun 3 | . 1 2 Ballistic Cannon 4 | . 1 3 Launcher 4 | . . 4 Special Weapon . | . . . Impact Weapon 1 | . . 1 Slashing Weapon . | . . . Piercing Weapon . | . . . Special Melee Weapon . | . . . Unidentified Prototypes . | . . . Parts Lost 4 | . . 4 Power 1 | . . 1 Propulsion 2 | . . 2 Utility . | . . . Weapon 1 | . . 1 Highest Loss Streak 4 | . . 4 To Critical Strikes . | . . . Average Slot Usage (%) 95 | . 91 99 Engine 13 | . 14 13 Treads 12 | . 9 14 Wheel 15 | . 18 13 Device 9 | . 5 14 Storage 14 | . 14 14 Energy Gun 2 | . 5 . Ballistic Gun 7 | . 12 2 Ballistic Cannon 17 | . 10 24 Naked Turns . | . . . Heaviest Build 32 | 11 31 32 Greatest Support 20 | 10 20 20 Greatest Overweight (x) 3 | 1 3 3 Average Overweight (x) 2 | 1 2 2 Largest Inventory Capacity 15 | 8 15 15 Average Capacity 14 | 8 14 15 Most Carried 15 | 7 15 15 Average Carried 13 | 6 12 14 Final Capacity 15 | 8 15 15 Final Carried 15 | 6 15 14 Class Distribution -------------------- 100% | Mutant Dominant Class ---------------- Mutant | -10/Materials Mutant | -10/Mines Resources | -11 -10 -10 ----------- Run | Yrd Mat Min Matter Collected 649 | 220 173 256 Remotely . | . . . Salvage Created 356 | . 159 197 Parts 32 | . 10 22 Haulers Intercepted 1 | . 1 . Recyclers Shooed . | . . . Parts Field Recycled . | . . . Retrieved Matter . | . . . Parts Self-Destructed . | . . . Prevented . | . . . Kills | -11 -10 -10 ------- Run | Yrd Mat Min Combat Hostiles Destroyed 17 | . 5 12 Guns 3 | . 2 1 Cannons 6 | . 3 3 AOE 8 | . . 8 Classes Destroyed 6 | . 3 3 Hauler 1 | . 1 . Recycler 1 | . . 1 Swarmer 9 | . 3 6 Grunt 5 | . 2 3 Demolisher 1 | . . 1 Assembled 2 | . . 2 Best Kill Streak 4 | . 3 4 Combat Bots Only 3 | . 3 3 Max Kills in Single Turn 3 | . 1 3 Gunslinging . | . . . Exploded 3 | . . 3 Melee . | . . . Uniques/NPCs Destroyed . | . . . Combat | -11 -10 -10 -------- Run | Yrd Mat Min Hostile Shots Fired 51 | . 14 37 Missed 8 | . 2 6 Damage Taken 997 | . 125 872 Core 272 | . 24 248 Absorbed by Shields . | . . . Core Remaining (%) 100 | 100 . . Volleys Fired 27 | . 14 13 Largest 2 | . 2 2 Hottest 70 | . 55 70 Shots Fired 50 | . 28 22 Gun 19 | . 14 5 Cannon 25 | . 14 11 Launcher 6 | . . 6 Special . | . . . Kinetic 44 | . 28 16 Thermal . | . . . Explosive 6 | . . 6 Electromagnetic . | . . . Robot Hit Streak 11 | . 11 9 Robot Miss Streak 4 | . 4 2 Penetration Max . | . . . Secondary Targets . | . . . Shots Hit Robots 31 | . 18 13 Core Hits 29 | . 8 21 Critical Kills . | . . . Critical Parts Destroyed . | . . . Critical Strikes . | . . . Melee Attacks 1 | . . 1 Impact 1 | . . 1 Slashing . | . . . Piercing . | . . . Sneak Attacks . | . . . Combat Hostiles . | . . . Follow-up Attacks . | . . . Damage Inflicted 886 | . 264 622 Guns 163 | . 131 32 Cannons 254 | . 133 121 Explosions 469 | . . 469 Melee . | . . . Ramming . | . . . Kinetic 417 | . 264 153 Thermal . | . . . Explosive 469 | . . 469 Electromagnetic . | . . . Impact . | . . . Slashing . | . . . Piercing . | . . . Highest Corruption . | . . . Average Corruption . | . . . Corruption Purged . | . . . Corruption Blocked . | . . . Overload Shots . | . . . Overflow Damage . | . . . Projectiles . | . . . Explosions . | . . . Melee . | . . . Knockbacks 3 | . 2 1 Impact . | . . . Kinetic 3 | . 2 1 Secondary . | . . . Self-Inflicted Damage 61 | . . 61 Shots 2 | . . 2 Rammed . | . . . Targets Rammed . | . . . Kicked . | . . . Crushed . | . . . Highest Temperature 58 | . 16 58 Average Temperature 20 | . 8 26 Received Heat Transfer 119 | . 36 83 Siege Activations . | . . . Robots Corrupted . | . . . Combat Hostiles . | . . . Parts Fried . | . . . Impact Corruptions . | . . . Robots Melted . | . . . Combat Hostiles . | . . . Parts Melted . | . . . Heat Transferred . | . . . Parts Sabotaged . | . . . Parts Stolen . | . . . Parts Stripped . | . . . Power Chain Reactions . | . . . Alert | -11 -10 -10 ------- Run | Yrd Mat Min Peak Influence 246 | . 167 246 Initial . | . . . Average 117 | . 80 155 Maximum Alert Level 1 | . . 1 Low Security (%) 88 | 100 100 77 Level 1 11 | . . 22 Level 2 . | . . . Level 3 . | . . . Level 4 . | . . . Level 5 . | . . . High Security . | . . . Max Security . | . . . Squads Dispatched . | . . . Investigation . | . . . Extermination . | . . . Reinforcement . | . . . Assault . | . . . Garrison . | . . . Intercept . | . . . Searches Triggered . | . . . Construction Impeded . | . . . Haulers Reinforced . | . . . Active Scanning Responses . | . . . Cargo Convoy Interrupts . | . . . Stealth | -11 -10 -10 --------- Run | Yrd Mat Min Distress Signals 1 | . 1 . Communications Jammed . | . . . Distress Signals . | . . . Times Spotted 34 | . 9 25 Peak Tracking Total 12 | . 3 12 Tactical Retreats . | . . . Traps | -11 -10 -10 ------- Run | Yrd Mat Min Traps Triggered . | . . . Indirectly . | . . . Trap Hack Attempts . | . . . Triggered . | . . . Disarmed . | . . . Reprogrammed . | . . . Reused . | . . . Traps Extracted . | . . . Installed . | . . . Triggered . | . . . Machines | -11 -10 -10 ---------- Run | Yrd Mat Min Machines Disabled . | . . . Max in Single Turn . | . . . Machines Repaired . | . . . Machines Dismantled . | . . . Machines Sabotaged . | . . . Overloaded Fab Kills . | . . . Hacking | -11 -10 -10 --------- Run | Yrd Mat Min Machines Accessed 1 | . 1 . Terminals 1 | . 1 . Fabricators . | . . . Repair Stations . | . . . Recycling Units . | . . . Scanalyzers . | . . . Garrison Access . | . . . Total Hacks 5 | . 5 . Successful 4 | . 4 . Failed 1 | . 1 . Catastrophic . | . . . Database Lockouts . | . . . Manual 1 | . 1 . Terminals 5 | . 5 . Fabricators . | . . . Repair Stations . | . . . Recycling Units . | . . . Scanalyzers . | . . . Garrison Access . | . . . Terminal Hacks 3 | . 3 . Record 1 | . 1 . Robot Analysis 2 | . 2 . Fabricator Hacks . | . . . Repair Station Hacks . | . . . Recycling Unit Hacks . | . . . Scanalyzer . | . . . Garrison Access Hacks . | . . . Unauthorized Hacks 1 | . 1 . Terminals 1 | . 1 . Botnet 1 | . 1 . Fabricators . | . . . Repair Stations . | . . . Recycling Units . | . . . Scanalyzers . | . . . Garrison Access . | . . . Data Cores Recovered . | . . . Used . | . . . Hacking Detections 1 | . 1 . Full Trace Events . | . . . Feedback Events . | . . . Feedback Blocked . | . . . Robot Schematics Acquired . | . . . Robots Built . | . . . Authchips . | . . . Time . | . . . Total Robot Build Rating . | . . . Part Schematics Acquired . | . . . Parts Built . | . . . Authchips . | . . . Time . | . . . Total Part Build Rating . | . . . Parts Repaired . | . . . Time . | . . . Parts Recycled . | . . . Recycled Matter . | . . . Retrieved Matter . | . . . Retrieved Components . | . . . Parts Scanalyzed . | . . . Part Schematics Acquired . | . . . Parts Damaged . | . . . Bothacking | -11 -10 -10 ------------ Run | Yrd Mat Min Used RIF Installer . | . . . Robots Hacked . | . . . Non-combat . | . . . Combat . | . . . Robot Hacks Applied . | . . . Relay Couplers Released . | . . . Fabnet Peak Effective % . | . . . Robots Rewired . | . . . Allies Hacked . | . . . Hacks Repelled . | . . . Allies | -11 -10 -10 -------- Run | Yrd Mat Min Total Allies . | . . . Largest Group . | . . . Highest-Rated Group . | . . . Highest-Rated Ally . | . . . Total Orders . | . . . Ally Attacks . | . . . Total Damage . | . . . Kills . | . . . Allies Corrupted . | . . . Allies Melted . | . . . Intel | -11 -10 -10 ------- Run | Yrd Mat Min Robot Analysis Total 2 | . 2 . Derelict Logs Recovered . | . . . Drone Launches . | . . . Drone Recoveries . | . . . Exploration | -11 -10 -10 ------------- Run | Yrd Mat Min Turns Passed 867 | 7 423 437 Spaces Moved 588 | 5 294 289 Core . | . . . Treads 2 | . 1 1 Legs . | . . . Wheels 586 | 5 293 288 Hover . | . . . Flight . | . . . Fastest Speed 95 | 95 95 110 Average Speed 119 | 95 115 123 Slowest Speed 240 | 95 240 240 Overloaded Moves . | . . . Propulsion Burnouts . | . . . Robots Hopped . | . . . Cave-ins Triggered . | . . . Exploration Rate (%) 36 | 2 55 51 Regions Visited 2 Branch Regions 1 Pre-discovered Areas . | . . . Known Exits Taken . | . . . Unknown Exits Taken 2 | 1 1 . Scrap Searched 1 | . . 1 Spaces Dug . | . . . Terrain Destroyed 28 | . . 28 Melee . | . . . Projectile . | . . . AOE 28 | . . 28 Terrain Rammed . | . . . Walls Destroyed . | . . . Machines Disabled . | . . . Actions | -11 -10 -10 --------- Run | Yrd Mat Min Total 699 | 7 350 342 Wait 15 | . 7 8 Move 586 | 4 293 289 Hop . | . . . Pick Up 23 | . 18 5 Fast Attach 2 | . 2 . Attach 2 | 1 . 1 Detach 1 | 1 . . Swap 23 | 1 5 17 Drop 19 | . 11 8 Fire 27 | . 14 13 Melee 1 | . . 1 Ram . | . . . Kick . | . . . Crush . | . . . Escape Stasis . | . . . Rewire . | . . . Trap . | . . . Miscellaneous . | . . . Route ------- -11/Scrapyard -10/Materials (discovered 4 exits: [*Mat x2] / [*Min x2]) -10/Mines (discovered 1 exit: [*Mat]) History --------- Turn | Location | Event 4 | -11/Scrapyard | Discovered new exit (range 3) 8 | -11/Scrapyard | Entered Materials 67 | -10/Materials | Discovered new exit (range 11) 93 | -10/Materials | Discovered new exit (range 10) 275 | -10/Materials | Discovered new exit (range 16) 304 | -10/Materials | Build established: Mutant 392 | -10/Materials | Discovered new exit (range 9) 431 | -10/Materials | Entered Mines 530 | -10/Mines | Discovered new exit (range 5) 831 | -10/Mines | Assembled infested the area 861 | -10/Mines | Core integrity fell below 50% 863 | -10/Mines | Core integrity fell below 20% 868 | -10/Mines | Destroyed by D-53 Grenadier with Mini Grenade Launcher Last Messages --------------- 00854_ as-23465 destroyed. 00854_ as-51865 destroyed. 00856_ as-27502 destroyed. 00856_ as-03241 destroyed. 00856_ as-89379 destroyed. 00856_ as-82646 destroyed. 00856_ as-58055 destroyed. 00856_ Ion Engine destroyed. 00858_ T-07 Excavator destroyed. 00859_ U-05 Engineer lays Concrete. 00860_ Lgt. Cannon destroyed. 00861_ U-05 Engineer lays Concrete. 00862_ The unstable cave ceiling collapses. 00862_ U-05 Engineer lays Concrete. 00862_ Com. Wheel destroyed. 00862_ U-05 Engineer destroyed. 00865_ D-53 Grenadier destroyed. 00865_ as-35498 destroyed. 00865_ as-54877 destroyed. 00866_ The unstable cave ceiling collapses. Map ----- +----------------------------------------------------+ | | | | | | | | | | | ???????????????????????????????#?????????????????? | | ????????????????????????????#????????????????????? | | ?????????????????????????????????????????????????? | | ??????????????????#??????????????????????????????? | | ?????????????????????????????????????????????????? | | ?????????????????????????????????????????????????? | | ?????????????????????????????????????????????????? | | ????????????????????######???????????????????????? | | ???????????????????## ##??????????????????????? | | ???????????????##### ##?????????????????????? | | ??????????????## ##????????????????????? | | ??????????????# ## #????#???????????????? | | ??????????????# ## ##???????????????????? | | ?????????????## # # ##??????????????????? | | ?????????????# d ##???#?????????????? | | ?????????????# #%% #?#?#?????????????? | | ?????????????# ####### #?????????? | | ???????????### ur ##????????? | | ?????????# a % a=% #?????????? | | ?????????# #### #############???? | | ??????????????###### @ ##???# #???? | | ?????????????#??#??## ###????# #???? | | ?????????????#??????# # #??????# #???? | | ??????????????#?????## =[ ##????#?# """ #???? | | ???????????????????#?## |# #####????# """ #?#?? | | ??????????????????????##==* ! ##?#?# """ #???? | | ??????????????????????# [= ##??# #???? | | ??????????????????????# [ ##?### #####?#?? | | ??????????????????#??### ##### #???????? | | ????????????????##????#### = ! #?????#?? | | ???????????????????????#### ]! #???????? | | ?????????????????????#??## #######???????? | | ??????????????????#??????# ##????#????????? | | ?????????????????????????## ###??####????????? | | ??????????????????????????# ###?#?#?#???#??????? | | ??????????????????????#???# ###???????#####?????? | | ???????????????????????#### #?#??#### ###?#??? | | ????????????????#?????## # ######?# ##???? | | ???????????????????#??# ## ### #?# ##??? | | ??????????????????????# # ## ##?# #???? | | ?????????????????????### #??# ###?? | | ???????????????????????# #### [ ##??? | | ???????????????????????## ###?? | | ????????????????????????##### ### ###??? | | ???????????????????????????#### ##?# ####???? | +----------------------------------------------------+ Best States ------------- Heat Dissipation 25 Energy Generation 10 Energy Capacity 250 Matter Stores 300 Matter Capacity 300 Sight Range 16 Terrain Scan Range 14 Terrain Scan Density 10 Evasion (%) 41 Recoil Reduction 2 Item Schematics ----------------- None Robot Schematics ------------------ None Fabricated ------------ Nothing Alien Tech Used ----------------- None Achievements -------------- None Challenges ------------ None Game ------ Seed SapperFluxAmplifier Manual? 0 Play Time 00:11:46 Cumulative 55.5 hours Start 2024.04.27 @ 06:47:06 End 2024.04.27 @ 06:58:10 Sessions 1 Manual Loads 0 Difficulty Rogue Special Mode None Game No. 34 Rogue 34 Adventurer 0 Explorer 0 Win Type - Total 1 Types 1/0/0/0/0/0/0/0/0 Lore% 38 Gallery% 41 Achievement% 40 Wizard Run 0 Options --------- Layout 1 ASCII 0 Keyboard 0 Movement Mouse Keybinds 0 Fullscreen 2 Font 24/Smallcaps Map View 50x35 Zoom Use 0% Tactical HUD 1 Map Filters NONE Filters NONE Steam 1 RUN: dbc67a8e-91fd-473c-8854-5311d55d56a5